lending/lending_fUSD_20250808
["ID","MTS","AMOUNT","RATE_DAILY","PERIOD"]
[377908413,1754613050018,-555.1,0.00019287,2]
[377908414,1754613050028,-7044.17259268,0.00019303,2]
[377908415,1754613050038,-3109.60433765,0.00019303,2]
[377908416,1754613050048,-157.78440529,0.00019339,2]
[377908417,1754613050058,-500.0,0.00019342,2]
[377908418,1754613050075,-298.5093801,0.00019352,2]
[377908419,1754613050086,-555.1,0.00019377,2]
[377908420,1754613050095,-7044.17259268,0.00019384,2]
[377908421,1754613050105,-3109.60433765,0.00019384,2]
[377908422,1754613050117,-500.0,0.00019438,2]
[377908423,1754613050126,-400.0,0.00019438,2]
[377908424,1754613050135,-1770.72,0.00019438,2]
[377908425,1754613050145,-4476.4016353,0.00019438,2]
[377908426,1754613050154,-137771.3919999,0.00019438,2]
[377908427,1754613050164,-524.8638871,0.00019438,2]
[377908428,1754613050173,-2033.74,0.00019438,2]
[377908429,1754613050184,-2028.1700985,0.00019438,2]
[377908430,1754613050193,-400.0,0.00019438,2]
[377908431,1754613050202,-1928.95,0.00019438,2]
[377908432,1754613050212,-1964.46,0.00019438,2]
[377908433,1754613050221,-1517.59,0.00019438,2]
[377908434,1754613050231,-500.0,0.00019438,2]
[377908435,1754613050240,-2517.35,0.00019438,2]
[377908436,1754613050250,-3417.84,0.00019438,2]
[377908437,1754613050259,-183.8220044,0.00019439,2]
[377908438,1754613050269,-3745.5951562,0.00019439,2]
[377908439,1754613050278,-3014.7886771,0.00019439,2]
[377908440,1754613050287,-2283.982198,0.00019439,2]
[377908441,1754613050297,-1553.1757189,0.00019439,2]
[377908442,1754613050306,-822.3692398,0.00019439,2]
[377908443,1754613050317,-115279.1685333,0.00019439,2]
[377908444,1754613050327,-92786.9450666,0.00019439,2]
[377908445,1754613050337,-70294.7215999,0.00019439,2]
[377908446,1754613050346,-47802.4981333,0.00019439,2]
[377908447,1754613050356,-25310.2746666,0.00019439,2]
[377908448,1754613050366,-1697.055965,0.00019439,2]
[377908449,1754613050377,-1365.9418315,0.00019439,2]
[377908450,1754613050387,-1034.827698,0.00019439,2]
[377908451,1754613050397,-703.7135645,0.00019439,2]
[377908452,1754613050407,-372.5994309,0.00019439,2]
[377908453,1754613050417,-166.75990206,0.00019439,2]
[377908454,1754613050427,-1000.0,0.00019451,2]
[377908455,1754613050437,-500.0,0.00019451,2]
[377908456,1754613050447,-500.0,0.00019451,2]
[377908457,1754613050457,-500.0,0.00019451,2]
[377908458,1754613050466,-500.0,0.00019451,2]
[377908459,1754613050476,-500.0,0.00019451,2]
[377908460,1754613050485,-500.0,0.00019451,2]
[377908461,1754613050495,-500.0,0.00019451,2]
[377908462,1754613050506,-150.0,0.00019452,2]
[377908463,1754613050516,-249.78950743,0.00019452,2]
[377908464,1754613050526,-400.0,0.00019452,2]
[377908465,1754613050537,-400.0,0.00019452,2]
[377908466,1754613050548,-400.0,0.00019452,2]
[377908467,1754613050557,-413.9,0.00019452,2]
[377908468,1754613050567,-198.96241843,0.00019452,2]
[377908469,1754613050577,-400.0,0.00019452,2]
[377908470,1754613050586,-491.72,0.00019452,2]
[377908471,1754613050596,-400.0,0.00019452,2]
[377908472,1754613050606,-1398.87,0.00019452,2]
[377908473,1754613050617,-1031.25,0.00019452,2]
[377908474,1754613050627,-172.38746644,0.00019452,2]
[377908475,1754613050637,-400.0,0.00019452,2]
[377908476,1754613050647,-400.0,0.00019452,2]
[377908477,1754613050656,-565.33,0.00019452,2]
[377908478,1754613050666,-400.0,0.00019452,2]
[377908479,1754613050675,-400.0,0.00019452,2]
[377908480,1754613050685,-984.93,0.00019452,2]
[377908481,1754613050694,-400.0,0.00019452,2]
[377908482,1754613050704,-1073.05,0.00019452,2]
[377908483,1754613050714,-344.99159827,0.00019452,2]
[377908484,1754613050724,-400.0,0.00019452,2]
[377908485,1754613050734,-1178.77,0.00019452,2]
[377908486,1754613050744,-828.34,0.00019452,2]
[377908487,1754613050753,-304.4403873,0.00019452,2]
[377908488,1754613050763,-400.0,0.00019452,2]
[377908489,1754613050773,-400.0,0.00019452,2]
[377908490,1754613050783,-400.0,0.00019452,2]
[377908491,1754613050792,-400.0,0.00019452,2]
[377908492,1754613050802,-400.0,0.00019452,2]
[377908493,1754613050812,-400.0,0.00019452,2]
[377908494,1754613050826,-400.0,0.00019452,2]
[377908495,1754613050839,-400.0,0.00019452,2]
[377908496,1754613050849,-400.0,0.00019452,2]
[377908497,1754613050858,-812.28,0.00019452,2]
[377908498,1754613050868,-927.28,0.00019452,2]
[377908499,1754613050878,-400.0,0.00019452,2]
[377908500,1754613050888,-400.0,0.00019452,2]
[377908501,1754613050898,-400.0,0.00019452,2]
[377908502,1754613050908,-953.96,0.00019452,2]
[377908503,1754613050917,-400.0,0.00019452,2]
[377908504,1754613050927,-400.0,0.00019452,2]
[377908505,1754613050936,-861.71,0.00019452,2]
[377908506,1754613050946,-580.75,0.00019452,2]
[377908507,1754613050955,-802.6,0.00019452,2]
[377908508,1754613050965,-205.68077903,0.00019452,2]
[377908509,1754613050975,-400.0,0.00019452,2]
[377908510,1754613050985,-400.0,0.00019452,2]
[377908511,1754613050994,-400.0,0.00019452,2]
[377908512,1754613051004,-400.0,0.00019452,2]
[377908513,1754613051014,-400.0,0.00019452,2]
[377908514,1754613051024,-571.8,0.00019452,2]
[377908515,1754613051034,-400.0,0.00019452,2]
[377908516,1754613051043,-400.0,0.00019452,2]
[377908517,1754613051053,-1017.49,0.00019452,2]
[377908518,1754613051062,-400.0,0.00019452,2]
[377908519,1754613051074,-400.0,0.00019452,2]
[377908520,1754613051083,-480.71,0.00019452,2]
[377908521,1754613051093,-403.51837725,0.00019452,2]
[377908522,1754613051102,-400.0,0.00019452,2]
[377908523,1754613051112,-400.0,0.00019452,2]
[377908524,1754613051122,-403.89,0.00019452,2]
[377908525,1754613051131,-400.0,0.00019452,2]
[377908526,1754613051141,-400.0,0.00019452,2]
[377908527,1754613051150,-1379.73,0.00019452,2]
[377908528,1754613051160,-400.0,0.00019452,2]
[377908529,1754613051170,-400.0,0.00019452,2]
[377908530,1754613051181,-1290.36,0.00019452,2]
[377908531,1754613051190,-204.43798119,0.00019452,2]
[377908532,1754613051200,-400.0,0.00019452,2]
[377908533,1754613051209,-400.0,0.00019452,2]
[377908534,1754613051219,-400.0,0.00019452,2]
[377908535,1754613051230,-400.0,0.00019452,2]
[377908536,1754613051239,-400.0,0.00019452,2]
[377908537,1754613051249,-560.12,0.00019452,2]
[377908538,1754613051258,-1326.45,0.00019452,2]
[377908539,1754613051268,-1037.58,0.00019452,2]
[377908540,1754613051278,-551.88,0.00019452,2]
[377908541,1754613051287,-400.0,0.00019452,2]
[377908542,1754613051297,-400.0,0.00019452,2]
[377908543,1754613051307,-570.53,0.00019452,2]
[377908544,1754613051317,-624.79,0.00019452,2]
[377908545,1754613051327,-459.48,0.00019452,2]
[377908546,1754613051336,-912.6,0.00019452,2]
[377908547,1754613051346,-453.86,0.00019452,2]
[377908548,1754613051355,-845.43,0.00019452,2]
[377908549,1754613051366,-610.33,0.00019452,2]
[377908550,1754613051375,-400.0,0.00019452,2]
[377908551,1754613051385,-1543.29,0.00019452,2]
[377908552,1754613051395,-400.0,0.00019452,2]
[377908553,1754613051405,-802.15,0.00019452,2]
[377908554,1754613051415,-405.06,0.00019452,2]
[377908555,1754613051424,-400.0,0.00019452,2]
[377908556,1754613051434,-400.0,0.00019452,2]
[377908557,1754613051444,-1052.0,0.00019452,2]
[377908558,1754613051454,-1340.86,0.00019452,2]
[377908559,1754613051464,-400.0,0.00019452,2]
[377908560,1754613051473,-400.0,0.00019452,2]
[377908561,1754613051482,-950.22,0.00019452,2]
[377908562,1754613051492,-903.46,0.00019452,2]
[377908563,1754613051501,-1188.56,0.00019452,2]
[377908564,1754613051512,-400.0,0.00019452,2]
[377908565,1754613051521,-400.0,0.00019452,2]
[377908566,1754613051532,-511.85,0.00019452,2]
[377908567,1754613051542,-400.0,0.00019452,2]
[377908568,1754613051553,-400.0,0.00019452,2]
[377908569,1754613051562,-502.43,0.00019452,2]
[377908570,1754613051573,-469.08,0.00019452,2]
[377908571,1754613051583,-538.68,0.00019452,2]
[377908572,1754613051593,-431.81,0.00019452,2]
[377908573,1754613051603,-400.0,0.00019452,2]
[377908574,1754613051614,-415.03,0.00019452,2]
[377908575,1754613051626,-400.0,0.00019452,2]
[377908576,1754613051635,-400.0,0.00019452,2]
[377908577,1754613051645,-400.0,0.00019452,2]
[377908578,1754613051655,-400.0,0.00019452,2]
[377908579,1754613051664,-400.0,0.00019452,2]
[377908580,1754613051674,-613.1,0.00019452,2]
[377908581,1754613051684,-400.0,0.00019452,2]
[377908582,1754613051694,-448.34,0.00019452,2]
[377908583,1754613051704,-400.0,0.00019452,2]
[377908584,1754613051714,-652.84,0.00019452,2]
[377908585,1754613051724,-400.0,0.00019452,2]
[377908586,1754613051735,-288.2015926,0.00019452,2]
[377908587,1754613051744,-400.0,0.00019452,2]
[377908588,1754613051755,-400.0,0.00019452,2]
[377908589,1754613051766,-400.0,0.00019452,2]
[377908590,1754613051776,-1054.59,0.00019452,2]
[377908591,1754613051786,-606.31,0.00019452,2]
[377908592,1754613051796,-468.72,0.00019452,2]
[377908593,1754613051806,-400.0,0.00019452,2]
[377908594,1754613051817,-400.0,0.00019452,2]
[377908595,1754613051829,-560.03,0.00019452,2]
[377908596,1754613051840,-509.52,0.00019452,2]
[377908597,1754613051849,-400.0,0.00019452,2]
[377908598,1754613051859,-400.0,0.00019452,2]
[377908599,1754613051869,-1129.63,0.00019452,2]
[377908600,1754613051879,-744.37,0.00019452,2]
[377908601,1754613051890,-771.07,0.00019452,2]
[377908602,1754613051900,-400.0,0.00019452,2]
[377908603,1754613051911,-1372.41,0.00019452,2]
[377908604,1754613051922,-400.0,0.00019452,2]
[377908605,1754613051932,-830.78,0.00019452,2]
[377908606,1754613051941,-643.55,0.00019452,2]
[377908607,1754613051950,-1290.29,0.00019452,2]
[377908608,1754613051960,-400.0,0.00019452,2]
[377908609,1754613051970,-400.0,0.00019452,2]
[377908610,1754613051979,-463.32,0.00019452,2]
[377908611,1754613051989,-400.0,0.00019452,2]
[377908612,1754613051999,-400.0,0.00019452,2]
[377908613,1754613052009,-400.0,0.00019452,2]
[377908614,1754613052019,-400.0,0.00019452,2]
[377908615,1754613052030,-400.0,0.00019452,2]
[377908616,1754613052039,-400.0,0.00019452,2]
[377908617,1754613052049,-792.51,0.00019452,2]
[377908618,1754613052061,-400.0,0.00019452,2]
[377908619,1754613052072,-400.0,0.00019452,2]
[377908620,1754613052082,-400.0,0.00019452,2]
[377908621,1754613052091,-720.13,0.00019452,2]
[377908622,1754613052101,-526.14,0.00019452,2]
[377908623,1754613052110,-690.34,0.00019452,2]
[377908624,1754613052121,-767.24,0.00019452,2]
[377908625,1754613052130,-784.03,0.00019452,2]
[377908626,1754613052140,-619.45,0.00019452,2]
[377908627,1754613052149,-592.46,0.00019452,2]
[377908628,1754613052159,-838.34,0.00019452,2]
[377908629,1754613052168,-400.0,0.00019452,2]
[377908630,1754613052178,-400.0,0.00019452,2]
[377908631,1754613052187,-430.58,0.00019452,2]
[377908632,1754613052197,-400.0,0.00019452,2]
[377908633,1754613052207,-400.0,0.00019452,2]
[377908634,1754613052216,-400.0,0.00019452,2]
[377908635,1754613052226,-400.0,0.00019452,2]
[377908636,1754613052235,-400.0,0.00019452,2]
[377908637,1754613052244,-400.0,0.00019452,2]
[377908638,1754613052253,-400.0,0.00019452,2]
[377908639,1754613052263,-400.0,0.00019452,2]
[377908640,1754613052272,-400.0,0.00019452,2]
[377908641,1754613052281,-400.0,0.00019452,2]
[377908642,1754613052291,-887.56,0.00019452,2]
[377908643,1754613052300,-400.0,0.00019452,2]
[377908644,1754613052311,-1398.35,0.00019452,2]
[377908645,1754613052321,-1086.27,0.00019452,2]
[377908646,1754613052330,-1137.31,0.00019452,2]
[377908647,1754613052340,-400.0,0.00019452,2]
[377908648,1754613052349,-488.07,0.00019452,2]
[377908649,1754613052359,-615.2,0.00019452,2]
[377908650,1754613052368,-400.0,0.00019452,2]
[377908651,1754613052378,-433.15,0.00019452,2]
[377908652,1754613052387,-969.77,0.00019452,2]
[377908653,1754613052397,-644.96,0.00019452,2]
[377908654,1754613052407,-711.54,0.00019452,2]
[377908655,1754613052416,-745.61,0.00019452,2]
[377908656,1754613052426,-1326.15,0.00019452,2]
[377908657,1754613052435,-580.71,0.00019452,2]
[377908658,1754613052445,-400.0,0.00019452,2]
[377908659,1754613052454,-400.0,0.00019452,2]
[377908660,1754613052464,-777.93,0.00019452,2]
[377908661,1754613052474,-400.0,0.00019452,2]
[377908662,1754613052485,-533.67,0.00019452,2]
[377908663,1754613052494,-315.76775836,0.00019452,2]
[377908664,1754613052503,-400.0,0.00019452,2]
[377908665,1754613052513,-1146.04,0.00019452,2]
[377908666,1754613052524,-400.0,0.00019452,2]
[377908667,1754613052535,-1764.53,0.00019452,2]
[377908668,1754613052545,-400.0,0.00019452,2]
[377908669,1754613052555,-400.0,0.00019452,2]
[377908670,1754613052566,-678.35,0.00019452,2]
[377908671,1754613052577,-595.92,0.00019452,2]
[377908672,1754613052587,-1128.98,0.00019452,2]
[377908673,1754613052597,-400.0,0.00019452,2]
[377908674,1754613052606,-400.0,0.00019452,2]
[377908675,1754613052618,-1058.02,0.00019452,2]
[377908676,1754613052627,-233.08564707,0.00019452,2]
[377908677,1754613052637,-336.20746036,0.00019452,2]
[377908678,1754613052646,-467.91,0.00019452,2]
[377908679,1754613052655,-460.25,0.00019452,2]
[377908680,1754613052665,-834.5,0.00019452,2]
[377908681,1754613052674,-498.62,0.00019452,2]
[377908682,1754613052683,-684.85,0.00019452,2]
[377908683,1754613052693,-519.11,0.00019452,2]
[377908684,1754613052702,-400.0,0.00019452,2]
[377908685,1754613052711,-428.27578473,0.00019452,2]
[377908686,1754613052721,-1822.08,0.00019452,2]
[377908687,1754613052730,-400.0,0.00019452,2]
[377908688,1754613052740,-400.0,0.00019452,2]
[377908689,1754613052750,-400.0,0.00019452,2]
[377908690,1754613052759,-400.0,0.00019452,2]
[377908691,1754613052768,-400.0,0.00019452,2]
[377908692,1754613052778,-400.0,0.00019452,2]
[377908693,1754613052789,-400.0,0.00019452,2]
[377908694,1754613052798,-431.49,0.00019452,2]
[377908695,1754613052807,-445.18046309,0.00019452,2]
[377908696,1754613052819,-400.0,0.00019452,2]
[377908697,1754613052830,-753.02,0.00019452,2]
[377908698,1754613052840,-756.51,0.00019452,2]
[377908699,1754613052850,-474.3,0.00019452,2]
[377908700,1754613052861,-400.0,0.00019452,2]
[377908701,1754613052871,-400.0,0.00019452,2]
[377908702,1754613052881,-400.0,0.00019452,2]
[377908703,1754613052890,-488.75,0.00019452,2]
[377908704,1754613052900,-530.37,0.00019452,2]
[377908705,1754613052910,-400.0,0.00019452,2]
[377908706,1754613052921,-1312.14,0.00019452,2]
[377908707,1754613052930,-282.11161289,0.00019452,2]
[377908708,1754613052940,-664.1,0.00019452,2]
[377908709,1754613052949,-400.0,0.00019452,2]
[377908710,1754613052959,-723.03,0.00019452,2]
[377908711,1754613052969,-481.93,0.00019452,2]
[377908712,1754613052978,-438.32284882,0.00019452,2]
[377908713,1754613052988,-400.0,0.00019452,2]
[377908714,1754613052997,-753.14,0.00019452,2]
[377908715,1754613053007,-400.0,0.00019452,2]
[377908716,1754613053017,-1362.2,0.00019452,2]
[377908717,1754613053027,-681.29,0.00019452,2]
[377908718,1754613053036,-400.0,0.00019452,2]
[377908719,1754613053047,-400.0,0.00019452,2]
[377908720,1754613053056,-1202.92,0.00019452,2]
[377908721,1754613053067,-400.0,0.00019452,2]
[377908722,1754613053077,-400.0,0.00019452,2]
[377908723,1754613053088,-400.0,0.00019452,2]
[377908724,1754613053099,-908.09,0.00019452,2]
[377908725,1754613053109,-1356.82,0.00019452,2]
[377908726,1754613053119,-642.93,0.00019452,2]
[377908727,1754613053129,-400.0,0.00019452,2]
[377908728,1754613053138,-400.0,0.00019452,2]
[377908729,1754613053148,-558.14,0.00019452,2]
[377908730,1754613053158,-400.0,0.00019452,2]
[377908731,1754613053168,-473.3,0.00019452,2]
[377908732,1754613053177,-400.0,0.00019452,2]
[377908733,1754613053187,-600.87,0.00019452,2]
[377908734,1754613053197,-857.38,0.00019452,2]
[377908735,1754613053207,-1113.28,0.00019452,2]
[377908736,1754613053217,-1063.89,0.00019452,2]
[377908737,1754613053226,-766.74,0.00019452,2]
[377908738,1754613053236,-702.23,0.00019452,2]
[377908739,1754613053245,-593.88,0.00019452,2]
[377908740,1754613053254,-400.0,0.00019452,2]
[377908741,1754613053263,-697.81,0.00019452,2]
[377908742,1754613053273,-1070.57,0.00019452,2]
[377908743,1754613053283,-1013.85,0.00019452,2]
[377908744,1754613053293,-565.06,0.00019452,2]
[377908745,1754613053302,-835.59,0.00019452,2]
[377908746,1754613053312,-400.0,0.00019452,2]
[377908747,1754613053324,-787.56,0.00019452,2]
[377908748,1754613053334,-805.74,0.00019452,2]
[377908749,1754613053343,-714.37,0.00019452,2]
[377908750,1754613053353,-400.0,0.00019452,2]
[377908751,1754613053362,-400.0,0.00019452,2]
[377908752,1754613053371,-400.0,0.00019452,2]
[377908753,1754613053381,-446.94,0.00019452,2]
[377908754,1754613053391,-518.84,0.00019452,2]
[377908755,1754613053400,-634.1,0.00019452,2]
[377908756,1754613053410,-997.03,0.00019452,2]
[377908757,1754613053419,-668.96,0.00019452,2]
[377908758,1754613053429,-400.0,0.00019452,2]
[377908759,1754613053439,-1310.15,0.00019452,2]
[377908760,1754613053448,-400.0,0.00019452,2]
[377908761,1754613053457,-823.13,0.00019452,2]
[377908762,1754613053466,-602.12,0.00019452,2]
[377908763,1754613053476,-542.82,0.00019452,2]
[377908764,1754613053485,-539.85,0.00019452,2]
[377908765,1754613053494,-1520.38,0.00019452,2]
[377908766,1754613053504,-677.81,0.00019452,2]
[377908767,1754613053513,-400.0,0.00019452,2]
[377908768,1754613053522,-1166.4,0.00019452,2]
[377908769,1754613053532,-400.0,0.00019452,2]
[377908770,1754613053541,-400.0,0.00019452,2]
[377908771,1754613053550,-400.0,0.00019452,2]
[377908772,1754613053559,-440.74,0.00019452,2]
[377908773,1754613053570,-400.0,0.00019452,2]
[377908774,1754613053579,-400.0,0.00019452,2]
[377908775,1754613053589,-1322.15,0.00019452,2]
[377908776,1754613053598,-400.0,0.00019452,2]
[377908777,1754613053608,-400.0,0.00019452,2]
[377908778,1754613053618,-400.0,0.00019452,2]
[377908779,1754613053627,-400.0,0.00019452,2]
[377908780,1754613053636,-400.0,0.00019452,2]
[377908781,1754613053647,-400.0,0.00019452,2]
[377908782,1754613053655,-439.53,0.00019452,2]
[377908783,1754613053665,-1225.17,0.00019452,2]
[377908784,1754613053674,-400.0,0.00019452,2]
[377908785,1754613053684,-729.31,0.00019452,2]
[377908786,1754613053693,-1460.14,0.00019452,2]
[377908787,1754613053703,-400.0,0.00019452,2]
[377908788,1754613053712,-455.12,0.00019452,2]
[377908789,1754613053722,-400.0,0.00019452,2]
[377908790,1754613053731,-400.0,0.00019452,2]
[377908791,1754613053741,-400.0,0.00019452,2]
[377908792,1754613053751,-535.87,0.00019452,2]
[377908793,1754613053761,-965.56,0.00019452,2]
[377908794,1754613053771,-400.0,0.00019452,2]
[377908795,1754613053780,-400.0,0.00019452,2]
[377908796,1754613053790,-400.0,0.00019452,2]
[377908797,1754613053800,-400.0,0.00019452,2]
[377908798,1754613053809,-400.0,0.00019452,2]
[377908799,1754613053821,-400.0,0.00019452,2]
[377908800,1754613053834,-1112.82,0.00019452,2]
[377908801,1754613053843,-400.0,0.00019452,2]
[377908802,1754613053853,-473.14,0.00019452,2]
[377908803,1754613053863,-360.67919495,0.00019452,2]
[377908804,1754613053872,-319.5075685,0.00019452,2]
[377908805,1754613053883,-1239.98,0.00019452,2]
[377908806,1754613053893,-400.0,0.00019452,2]
[377908807,1754613053902,-592.4,0.00019452,2]
[377908808,1754613053912,-546.56,0.00019452,2]
[377908809,1754613053922,-400.0,0.00019452,2]
[377908810,1754613053932,-1121.49,0.00019452,2]
[377908811,1754613053942,-400.0,0.00019452,2]
[377908812,1754613053951,-2373.45,0.00019452,2]
[377908813,1754613053961,-412.93,0.00019452,2]
[377908814,1754613053971,-1332.23,0.00019452,2]
[377908815,1754613053980,-400.0,0.00019452,2]
[377908816,1754613053990,-867.66,0.00019452,2]
[377908817,1754613053999,-400.0,0.00019452,2]
[377908818,1754613054009,-1921.83,0.00019452,2]
[377908819,1754613054019,-400.0,0.00019452,2]
[377908820,1754613054028,-400.0,0.00019452,2]
[377908821,1754613054124,-477.33,0.00019452,2]
[377908822,1754613054171,-400.0,0.00019452,2]
[377908823,1754613054180,-586.09,0.00019452,2]
[377908824,1754613054190,-633.66,0.00019452,2]
[377908825,1754613054200,-400.0,0.00019452,2]
[377908826,1754613054209,-400.0,0.00019452,2]
[377908827,1754613054219,-434.62,0.00019452,2]
[377908828,1754613054228,-400.0,0.00019452,2]
[377908829,1754613054238,-1031.22,0.00019452,2]
[377908830,1754613054247,-400.0,0.00019452,2]
[377908831,1754613054258,-591.29,0.00019452,2]
[377908832,1754613054267,-1239.8,0.00019452,2]
[377908833,1754613054277,-419.72,0.00019452,2]
[377908834,1754613054288,-765.3,0.00019452,2]
[377908835,1754613054297,-433.91,0.00019452,2]
[377908836,1754613054307,-400.0,0.00019452,2]
[377908837,1754613054317,-1091.91,0.00019452,2]
[377908838,1754613054327,-718.67,0.00019452,2]
[377908839,1754613054337,-400.0,0.00019452,2]
[377908840,1754613054347,-400.0,0.00019452,2]
[377908841,1754613054357,-798.23,0.00019452,2]
[377908842,1754613054367,-942.73,0.00019452,2]
[377908843,1754613054377,-400.0,0.00019452,2]
[377908844,1754613054387,-549.44,0.00019452,2]
[377908845,1754613054397,-655.59,0.00019452,2]
[377908846,1754613054407,-706.48,0.00019452,2]
[377908847,1754613054417,-1153.34,0.00019452,2]
[377908848,1754613054427,-549.94,0.00019452,2]
[377908849,1754613054437,-1177.75,0.00019452,2]
[377908850,1754613054446,-560.12,0.00019452,2]
[377908851,1754613054455,-400.0,0.00019452,2]
[377908852,1754613054465,-819.45,0.00019452,2]
[377908853,1754613054475,-472.38,0.00019452,2]
[377908854,1754613054484,-895.98,0.00019452,2]
[377908855,1754613054494,-804.91,0.00019452,2]
[377908856,1754613054504,-400.0,0.00019452,2]
[377908857,1754613054514,-400.0,0.00019452,2]
[377908858,1754613054524,-638.56,0.00019452,2]
[377908859,1754613054535,-1000.0,0.00019452,2]
[377908860,1754613054545,-352.152162,0.00019452,2]
[377908861,1754613054554,-593.81,0.00019452,2]
[377908862,1754613054564,-352.152162,0.00019452,2]
[377908863,1754613054576,-1258.89,0.00019452,2]
[377908864,1754613054586,-420.834801,0.00019452,2]
[377908865,1754613054596,-420.834801,0.00019452,2]
[377908866,1754613054606,-400.0,0.00019452,2]
[377908867,1754613054616,-400.0,0.00019452,2]
[377908868,1754613054626,-1287.29,0.00019452,2]
[377908869,1754613054636,-400.0,0.00019452,2]
[377908870,1754613054646,-622.14,0.00019452,2]
[377908871,1754613054656,-400.0,0.00019452,2]
[377908872,1754613054666,-400.0,0.00019452,2]
[377908873,1754613054676,-1105.48,0.00019452,2]
[377908874,1754613054685,-1707.57,0.00019452,2]
[377908875,1754613054695,-1063.27,0.00019452,2]
[377908876,1754613054705,-476.36514173,0.00019452,2]
[377908877,1754613054715,-1515.17,0.00019452,2]
[377908878,1754613054725,-1621.03,0.00019452,2]
[377908879,1754613054735,-400.0,0.00019452,2]
[377908880,1754613054745,-877.01,0.00019452,2]
[377908881,1754613054754,-400.0,0.00019452,2]
[377908882,1754613054764,-400.0,0.00019452,2]
[377908883,1754613054773,-577.01,0.00019452,2]
[377908884,1754613054784,-400.0,0.00019452,2]
[377908885,1754613054794,-400.0,0.00019452,2]
[377908886,1754613054804,-400.0,0.00019452,2]
[377908887,1754613054814,-1622.23,0.00019452,2]
[377908888,1754613054827,-400.0,0.00019452,2]
[377908889,1754613054844,-1480.91,0.00019452,2]
[377908890,1754613054854,-400.0,0.00019452,2]
[377908891,1754613054864,-400.0,0.00019452,2]
[377908892,1754613054875,-981.54,0.00019452,2]
[377908893,1754613054884,-400.0,0.00019452,2]
[377908894,1754613054895,-246.791616,0.00019452,2]
[377908895,1754613054904,-246.791616,0.00019452,2]
[377908896,1754613054916,-400.0,0.00019452,2]
[377908897,1754613054927,-400.0,0.00019452,2]
[377908898,1754613054938,-400.0,0.00019452,2]
[377908899,1754613054949,-1040.41,0.00019452,2]
[377908900,1754613054958,-400.0,0.00019452,2]
[377908901,1754613054968,-400.0,0.00019452,2]
[377908902,1754613054978,-447.12,0.00019452,2]
[377908903,1754613054988,-1390.26,0.00019452,2]
[377908904,1754613054998,-1312.79,0.00019452,2]
[377908905,1754613055008,-400.0,0.00019452,2]
[377908906,1754613055018,-446.5,0.00019452,2]
[377908907,1754613055027,-1460.09,0.00019452,2]
[377908908,1754613055037,-400.0,0.00019452,2]
[377908909,1754613055047,-400.0,0.00019452,2]
[377908910,1754613055056,-436.39,0.00019452,2]
[377908911,1754613055066,-400.0,0.00019452,2]
[377908912,1754613055079,-806.42,0.00019452,2]